fUSD/lending_fUSD_20251017
["ID","MTS","AMOUNT","RATE_DAILY","PERIOD"]
[391691444,1760730641698,-153.0,0.00036745,2]
[391691446,1760730641709,-153.0,0.00036745,2]
[391691448,1760730641718,-153.0,0.00036745,2]
[391691450,1760730641727,-153.0,0.00036745,2]
[391691451,1760730641740,-153.0,0.00036745,2]
[391691453,1760730641750,-153.0,0.00036745,2]
[391691455,1760730641760,-153.0,0.00036745,2]
[391691457,1760730641769,-153.0,0.00036745,2]
[391691459,1760730641779,-153.0,0.00036745,2]
[391691461,1760730641789,-153.0,0.00036745,2]
[391691463,1760730641798,-153.0,0.00036745,2]
[391691465,1760730641807,-153.0,0.00036745,2]
[391691467,1760730641817,-153.0,0.00036745,2]
[391691469,1760730641826,-153.0,0.00036745,2]
[391691471,1760730641835,-153.0,0.00036745,2]
[391691472,1760730641844,-153.0,0.00036745,2]
[391691474,1760730641853,-153.0,0.00036745,2]
[391691476,1760730641862,-153.0,0.00036745,2]
[391691478,1760730641871,-153.0,0.00036745,2]
[391691480,1760730641880,-153.0,0.00036745,2]
[391691482,1760730641890,-400.0,0.00036769,2]
[391691484,1760730641900,-153.0,0.000369,120]
[391691486,1760730641909,-1881.0,0.00036992,20]
[391691488,1760730641918,-1000.0,0.00037,2]
[391691490,1760730641928,-1000.0,0.00037,2]
[391691491,1760730641937,-1000.0,0.00037,2]
[391691493,1760730641948,-1000.0,0.00037,2]
[391691495,1760730641961,-475.6557911,0.00037,120]
[391691496,1760730641970,-1000.0,0.00037,2]
[391691497,1760730641980,-1000.0,0.00037,2]
[391691498,1760730641989,-368.0140045,0.00037,10]
[391691499,1760730641999,-1000.0,0.00037,2]
[391691500,1760730642008,-1000.0,0.00037,2]
[391691501,1760730642017,-1000.0,0.00037,2]
[391691502,1760730642026,-1000.0,0.00037,2]
[391691503,1760730642036,-500.0,0.00037025,5]
[391691504,1760730642045,-500.0,0.00037025,5]
[391691505,1760730642054,-500.0,0.00037025,5]
[391691506,1760730642064,-150.99,0.00037067,2]
[391691507,1760730642073,-1134.69,0.00037067,2]
[391691508,1760730642082,-299.99,0.00037067,30]
[391691509,1760730642092,-150.99,0.00037067,30]
[391691511,1760730642101,-3345.51,0.00037067,2]
[391691512,1760730642110,-9999.99,0.00037067,2]
[391691514,1760730642120,-180.11,0.00037067,2]
[391691516,1760730642130,-232.49773783,0.000372,120]
[391691518,1760730642139,-479.44,0.00037479,2]
[391691520,1760730642148,-900.0,0.00037534,37]
[391691521,1760730642157,-500.0,0.00037573,5]
[391691523,1760730642166,-501.65863554,0.00037573,5]
[391691525,1760730642175,-413.6,0.00037616,2]
[391691527,1760730642185,-3076.0,0.00037672,2]
[391691529,1760730642194,-199.0,0.00037672,7]
[391691531,1760730642205,-2050.0,0.00037672,2]
[391691532,1760730642214,-749.0,0.00037672,2]
[391691534,1760730642224,-635.621,0.00037672,2]
[391691536,1760730642233,-3408.0,0.00037672,2]
[391691538,1760730642247,-1589.0,0.00037672,2]
[391691540,1760730642256,-1310.0,0.00037672,2]
[391691542,1760730642266,-605.0,0.00037672,2]
[391691544,1760730642275,-572.819,0.00037672,2]
[391691546,1760730642284,-826.0,0.00037672,2]
[391691548,1760730642293,-622.548,0.00037672,2]
[391691550,1760730642303,-3356.0,0.00037672,2]
[391691552,1760730642312,-6445.0,0.00037672,2]
[391691554,1760730642322,-153.0,0.000377,120]
[391691556,1760730642332,-152.0,0.000378,120]
[391691558,1760730642342,-199.0,0.00037946,8]
[391691560,1760730642351,-400.0,0.00038008,2]
[391691562,1760730642361,-199.0,0.0003822,9]
[391691564,1760730642370,-150.0,0.00038285,120]
[391691566,1760730642379,-18471.8455681,0.00038346,3]
[391691568,1760730642388,-500.0,0.00038356,120]
[391691570,1760730642397,-6339.1625,0.00038356,6]
[391691572,1760730642406,-13485.2,0.00038356,10]
[391691574,1760730642415,-500.0,0.00038373,5]
[391691576,1760730642425,-199.0,0.00038493,10]
[391691578,1760730642435,-153.0,0.000385,120]
[391691580,1760730642444,-512.7684,0.00038557,2]
[391691581,1760730642456,-1000.0,0.00038557,2]
[391691583,1760730642466,-18471.8455681,0.00038647,3]
[391691585,1760730642475,-1612.47,0.00038657,7]
[391691587,1760730642484,-1592.18,0.00038657,120]
[391691589,1760730642494,-1592.18,0.00038657,120]
[391691591,1760730642503,-1592.18,0.00038657,120]
[391691593,1760730642512,-1592.18,0.00038657,120]
[391691595,1760730642522,-1592.18,0.00038657,120]
[391691597,1760730642531,-1592.18,0.00038657,120]
[391691599,1760730642540,-1592.18,0.00038657,120]
[391691601,1760730642550,-1592.18,0.00038657,120]
[391691603,1760730642559,-1592.18,0.00038657,120]
[391691606,1760730642568,-1592.18,0.00038657,120]
[391691609,1760730642577,-1592.18,0.00038657,120]
[391691612,1760730642587,-1592.18,0.00038657,120]
[391691615,1760730642596,-1592.18,0.00038657,120]
[391691617,1760730642605,-1592.18,0.00038657,120]
[391691620,1760730642615,-1592.18,0.00038657,120]
[391691622,1760730642626,-1592.18,0.00038657,120]
[391691624,1760730642636,-1592.18,0.00038657,120]
[391691626,1760730642645,-1592.18,0.00038657,120]
[391691628,1760730642655,-1592.18,0.00038657,120]
[391691630,1760730642665,-1592.18,0.00038657,120]
[391691632,1760730642675,-1592.18,0.00038657,120]
[391691634,1760730642684,-1592.18,0.00038657,120]
[391691637,1760730642694,-1592.18,0.00038657,120]
[391691640,1760730642707,-1592.41016389,0.00038657,120]
[391691643,1760730642717,-500.0,0.00038673,5]
[391691645,1760730642727,-172.16017549,0.00038673,5]
[391691648,1760730642741,-500.0,0.00038673,5]
[391691649,1760730642751,-5633.0,0.00038725,117]
[391691652,1760730642761,-196.76481376,0.00038767,11]
[391691654,1760730642771,-1612.47,0.00038931,7]
[391691656,1760730642781,-160.0,0.00039,120]
[391691658,1760730642791,-152.0,0.000391,120]
[391691660,1760730642800,-500.0,0.00039145,120]
[391691662,1760730642810,-1612.47,0.00039205,7]
[391691664,1760730642819,-1000.0,0.00039221,5]
[391691666,1760730642828,-1000.0,0.00039221,5]
[391691668,1760730642838,-151.20527436,0.0003937,30]
[391691670,1760730642846,-153.0,0.000394,120]
[391691672,1760730642856,-500.0,0.00039433,5]
[391691674,1760730642865,-500.0,0.00039433,5]
[391691676,1760730642874,-1612.47,0.00039479,7]
[391691678,1760730642883,-1612.47,0.00039753,7]
[391691680,1760730642894,-501.45384956,0.00039768,5]
[391691682,1760730642904,-1000.0,0.00039768,5]
[391691684,1760730642913,-1000.0,0.00039788,2]
[391691686,1760730642922,-151.20527436,0.00039808,30]
[391691688,1760730642931,-500.0,0.00039914,5]
[391691690,1760730642941,-500.0,0.00039914,5]
[391691692,1760730642950,-500.0,0.00039914,5]
[391691694,1760730642961,-500.0,0.00039914,5]
[391691696,1760730642970,-500.0,0.00039987,5]
[391691698,1760730642979,-500.0,0.00039999,31]
[391691700,1760730642988,-500.0,0.00039999,31]
[391691702,1760730642998,-500.0,0.00039999,31]
[391691704,1760730643007,-500.0,0.00039999,31]
[391691706,1760730643016,-500.0,0.00039999,31]
[391691708,1760730643025,-500.0,0.00039999,31]
[391691710,1760730643034,-500.0,0.00039999,31]
[391691712,1760730643043,-500.0,0.00039999,31]
[391691714,1760730643052,-260.67780729,0.00039999,31]
[391691716,1760730643061,-500.0,0.00039999,31]
[391691718,1760730643070,-500.0,0.00039999,31]
[391691720,1760730643079,-300.0,0.0004,60]
[391691721,1760730643088,-1612.47,0.00040027,7]
[391691723,1760730643097,-153.0,0.000402,120]
[391691725,1760730643106,-151.20527436,0.00040219,30]
[391691727,1760730643115,-1612.47,0.00040301,7]
[391691729,1760730643124,-2000.0,0.00040309,120]
[391691731,1760730643134,-5000.0,0.00040435,2]
[391691733,1760730643142,-55555.0,0.00040435,60]
[391691735,1760730643152,-1000.0,0.00040462,5]
[391691737,1760730643161,-889.11750703,0.00040462,5]
[391691739,1760730643170,-492.05,0.00040471,120]
[391691740,1760730643179,-152.0,0.000405,120]
[391691742,1760730643189,-18471.8455681,0.00040525,3]
[391691744,1760730643198,-500.0,0.00040535,5]
[391691746,1760730643210,-236.97809869,0.00040572,15]
[391691749,1760730643220,-300.0,0.00040573,5]
[391691750,1760730643229,-1612.47,0.00040575,7]
[391691753,1760730643239,-151.20527436,0.00040658,30]
[391691755,1760730643248,-2050.0,0.00040672,2]
[391691757,1760730643257,-749.0,0.00040672,2]
[391691758,1760730643266,-3408.0,0.00040672,2]
[391691761,1760730643275,-1589.0,0.00040672,2]
[391691762,1760730643292,-1310.0,0.00040672,2]
[391691765,1760730643307,-605.0,0.00040672,2]
[391691767,1760730643317,-571.0,0.00040672,2]
[391691769,1760730643326,-816.0,0.00040672,2]
[391691771,1760730643335,-3356.0,0.00040672,2]
[391691773,1760730643344,-6445.0,0.00040672,2]
[391691774,1760730643354,-1612.47,0.00040849,7]
[391691776,1760730643362,-5043.99668962,0.00040985,13]
[391691778,1760730643372,-18471.8455681,0.00040988,3]
[391691780,1760730643384,-475.6557911,0.00041,30]
[391691782,1760730643393,-153.0,0.00041,120]
[391691784,1760730643402,-2571.18153825,0.00041,30]
[391691786,1760730643412,-7606.995,0.00041095,7]
[391691789,1760730643421,-500.0,0.00041096,30]
[391691790,1760730643431,-500.0,0.00041096,30]
[391691793,1760730643440,-500.0,0.00041096,30]
[391691794,1760730643449,-500.0,0.00041096,30]
[391691796,1760730643460,-500.0,0.00041096,30]
[391691798,1760730643469,-500.0,0.00041096,30]
[391691800,1760730643479,-500.0,0.00041096,30]
[391691802,1760730643488,-500.0,0.00041096,30]
[391691804,1760730643497,-500.0,0.00041096,30]
[391691806,1760730643506,-500.0,0.00041096,30]
[391691808,1760730643515,-500.0,0.00041096,30]
[391691810,1760730643525,-500.0,0.00041096,30]
[391691812,1760730643534,-500.0,0.00041096,30]
[391691814,1760730643544,-500.0,0.00041096,30]
[391691816,1760730643553,-500.0,0.00041096,30]
[391691818,1760730643563,-500.0,0.00041096,30]
[391691820,1760730643572,-500.0,0.00041096,30]
[391691822,1760730643582,-500.0,0.00041096,30]
[391691824,1760730643591,-500.0,0.00041096,30]
[391691826,1760730643600,-500.0,0.00041096,30]
[391691828,1760730643609,-500.0,0.00041096,30]
[391691830,1760730643619,-500.0,0.00041096,30]
[391691832,1760730643628,-500.0,0.00041096,30]
[391691834,1760730643637,-500.0,0.00041096,30]
[391691836,1760730643647,-500.0,0.00041096,30]
[391691838,1760730643656,-500.0,0.00041096,30]
[391691840,1760730643665,-500.0,0.00041096,30]
[391691842,1760730643675,-500.0,0.00041096,30]
[391691844,1760730643684,-500.0,0.00041096,30]
[391691846,1760730643693,-500.0,0.00041096,30]
[391691848,1760730643704,-500.0,0.00041096,30]
[391691850,1760730643713,-500.0,0.00041096,30]
[391691852,1760730643723,-500.0,0.00041096,30]
[391691854,1760730643733,-500.0,0.00041096,30]
[391691856,1760730643744,-500.0,0.00041096,30]
[391691858,1760730643754,-500.0,0.00041096,30]
[391691859,1760730643763,-500.0,0.00041096,30]
[391691862,1760730643773,-500.0,0.00041096,30]
[391691863,1760730643782,-500.0,0.00041096,30]
[391691866,1760730643792,-500.0,0.00041096,30]
[391691868,1760730643801,-500.0,0.00041096,30]
[391691870,1760730643812,-500.0,0.00041096,30]
[391691871,1760730643822,-500.0,0.00041096,30]
[391691873,1760730643831,-500.0,0.00041096,30]
[391691875,1760730643840,-500.0,0.00041096,30]
[391691877,1760730643849,-500.0,0.00041096,30]
[391691879,1760730643859,-500.0,0.00041096,30]
[391691881,1760730643868,-500.0,0.00041096,30]
[391691883,1760730643877,-500.0,0.00041096,30]
[391691885,1760730643886,-500.0,0.00041096,30]
[391691887,1760730643896,-500.0,0.00041096,30]
[391691889,1760730643906,-500.0,0.00041096,30]
[391691891,1760730643915,-500.0,0.00041096,30]
[391691893,1760730643924,-500.0,0.00041096,30]
[391691895,1760730643934,-500.0,0.00041096,30]
[391691897,1760730643943,-500.0,0.00041096,30]
[391691899,1760730643954,-500.0,0.00041096,30]
[391691901,1760730643963,-500.0,0.00041096,30]
[391691903,1760730643972,-500.0,0.00041096,30]
[391691905,1760730643982,-500.0,0.00041096,30]
[391691907,1760730643992,-500.0,0.00041096,30]
[391691909,1760730644001,-500.0,0.00041096,30]
[391691911,1760730644011,-500.0,0.00041096,30]
[391691913,1760730644020,-500.0,0.00041096,30]
[391691915,1760730644030,-500.0,0.00041096,30]
[391691917,1760730644039,-500.0,0.00041096,30]
[391691919,1760730644049,-500.0,0.00041096,30]
[391691921,1760730644058,-500.0,0.00041096,30]
[391691923,1760730644067,-500.0,0.00041096,30]
[391691925,1760730644076,-500.0,0.00041096,30]
[391691927,1760730644086,-500.0,0.00041096,30]
[391691929,1760730644095,-500.0,0.00041096,30]
[391691931,1760730644104,-500.0,0.00041096,30]
[391691933,1760730644113,-484.0,0.00041096,30]
[391691935,1760730644123,-1612.47,0.00041123,7]
[391691937,1760730644132,-200.0,0.00041161,120]
[391691939,1760730644141,-3746.05263471,0.00041177,120]
[391691941,1760730644153,-150.0,0.00041252,30]
[391691943,1760730644162,-150.0,0.00041252,30]
[391691945,1760730644171,-150.0,0.00041252,30]
[391691947,1760730644180,-150.0,0.00041252,30]
[391691949,1760730644189,-150.0,0.00041252,30]
[391691951,1760730644199,-150.0,0.00041252,30]
[391691953,1760730644208,-150.0,0.00041252,30]
[391691955,1760730644217,-150.0,0.00041252,30]
[391691957,1760730644227,-150.0,0.00041252,30]
[391691959,1760730644236,-150.0,0.00041252,30]
[391691961,1760730644245,-150.0,0.00041252,30]
[391691963,1760730644255,-150.0,0.00041252,30]
[391691965,1760730644263,-150.00000001,0.00041252,30]
[391691967,1760730644272,-150.0,0.00041252,30]
[391691968,1760730644281,-150.0,0.00041252,30]
[391691970,1760730644291,-150.0,0.00041252,30]
[391691972,1760730644302,-150.0,0.00041252,30]
[391691975,1760730644311,-236.9780986,0.00041339,15]
[391691977,1760730644320,-150.0,0.00041359,30]
[391691978,1760730644330,-1612.47,0.00041397,7]
[391691980,1760730644339,-150.0,0.0004146,30]
[391691982,1760730644349,-150.0,0.00041465,30]
[391691984,1760730644358,-150.0,0.00041522,30]
[391691986,1760730644367,-150.0,0.00041572,30]
[391691989,1760730644377,-150.0,0.00041605,30]
[391691990,1760730644386,-150.0,0.00041669,30]
[391691992,1760730644395,-1612.47,0.00041671,7]
[391691994,1760730644404,-150.0,0.00041678,30]
[391691996,1760730644413,-150.0,0.00041785,30]
[391691998,1760730644422,-150.0,0.00041791,30]
[391692000,1760730644431,-152.0,0.000418,120]
[391692002,1760730644440,-18471.8455681,0.00041815,3]
[391692004,1760730644450,-150.0,0.00041825,30]
[391692006,1760730644461,-150.0,0.00041877,30]
[391692008,1760730644471,-150.0,0.00041892,30]
[391692010,1760730644480,-153.0,0.000419,120]
[391692012,1760730644489,-1612.47,0.00041945,7]
[391692014,1760730644498,-150.0,0.00041957,30]
[391692016,1760730644507,-150.0,0.00041998,30]
[391692018,1760730644517,-150.0,0.00042016,30]
[391692020,1760730644526,-150.0,0.00042061,30]
[391692023,1760730644535,-150.0,0.00042085,30]
[391692025,1760730644545,-150.0,0.00042105,30]
[391692027,1760730644555,-236.9780986,0.00042106,15]
[391692029,1760730644564,-150.0,0.00042211,30]
[391692031,1760730644574,-1612.47,0.00042219,7]
[391692033,1760730644583,-150.0,0.00042294,30]
[391692035,1760730644592,-150.0,0.0004231,30]
[391692036,1760730644601,-150.0,0.00042318,30]
[391692038,1760730644611,-150.0,0.00042331,30]
[391692040,1760730644620,-150.0,0.00042398,30]
[391692042,1760730644630,-150.0,0.00042425,30]
[391692044,1760730644639,-1612.47,0.00042493,7]
[391692046,1760730644648,-150.0,0.00042502,30]
[391692048,1760730644659,-150.0,0.00042531,30]
[391692050,1760730644668,-150.0,0.000426,30]
[391692053,1760730644678,-150.0,0.00042638,30]
[391692054,1760730644687,-150.0,0.00042662,30]
[391692056,1760730644698,-153.0,0.000427,120]
[391692058,1760730644709,-150.0,0.0004271,30]
[391692061,1760730644718,-150.0,0.00042744,30]
[391692062,1760730644727,-1612.62604892,0.00042767,7]
[391692064,1760730644741,-150.0,0.0004278,30]
[391692066,1760730644750,-150.0,0.00042851,30]
[391692068,1760730644760,-150.0,0.0004287,30]
[391692070,1760730644769,-236.9780986,0.00042873,15]
[391692072,1760730644780,-282.4,0.000429,90]
[391692074,1760730644789,-150.0,0.00042919,30]
[391692076,1760730644798,-150.0,0.00042958,30]
[391692078,1760730644808,-150.0,0.00042971,30]
[391692080,1760730644818,-500.0,0.00043,2]
[391692082,1760730644827,-203.02,0.00043014,120]
[391692084,1760730644837,-150.0,0.00043015,30]
[391692086,1760730644846,-150.0,0.00043064,30]
[391692088,1760730644854,-150.0,0.00043127,30]
[391692090,1760730644864,-150.0,0.00043139,30]
[391692092,1760730644873,-150.0,0.00043171,30]
[391692094,1760730644882,-152.0,0.000432,120]
[391692096,1760730644891,-150.0,0.00043277,30]
[391692098,1760730644901,-1144.0,0.000433,2]
[391692100,1760730644910,-150.0,0.00043335,30]
[391692102,1760730644919,-150.0,0.00043368,30]
[391692104,1760730644928,-150.0,0.00043384,30]
[391692106,1760730644938,-150.0,0.00043409,30]
[391692108,1760730644947,-151.0,0.00043428,120]
[391692110,1760730644959,-884976.19635246,0.00043431,120]
[391692112,1760730644968,-233.96347,0.00043445,30]
[391692114,1760730644977,-150.0,0.00043491,30]
[391692116,1760730644986,-153.0,0.000435,120]
[391692118,1760730644995,-150.0,0.00043544,30]
[391692120,1760730645005,-150.0,0.00043544,30]
[391692122,1760730645014,-150.0,0.00043544,30]
[391692137,1760730645023,-150.0,0.00043544,30]
[391692141,1760730645177,-150.0,0.00043597,30]
[391692143,1760730645186,-236.9780986,0.0004364,15]
[391692145,1760730645196,-233.96347,0.00043645,30]
[391692147,1760730645206,-3746.05263471,0.00043648,120]
[391692149,1760730645215,-156.08495922,0.00043649,12]
[391692151,1760730645227,-36943.6911361,0.00043662,3]
[391692152,1760730645238,-500.0,0.00043672,120]
[391692153,1760730645248,-500.0,0.00043672,120]
[391692154,1760730645258,-500.0,0.00043672,120]
[391692155,1760730645268,-500.0,0.00043672,120]
[391692156,1760730645279,-500.0,0.00043672,120]
[391692157,1760730645288,-500.0,0.00043672,120]
[391692158,1760730645300,-500.0,0.00043672,120]
[391692159,1760730645309,-500.0,0.00043672,120]
[391692160,1760730645320,-500.0,0.00043672,120]
[391692161,1760730645331,-500.0,0.00043672,120]
[391692162,1760730645347,-500.0,0.00043672,120]
[391692164,1760730645367,-500.0,0.00043672,120]
[391692166,1760730645376,-500.0,0.00043672,120]
[391692168,1760730645386,-500.0,0.00043672,120]
[391692170,1760730645394,-500.0,0.00043672,120]
[391692172,1760730645403,-500.0,0.00043672,120]
[391692174,1760730645413,-500.0,0.00043672,120]
[391692176,1760730645422,-500.0,0.00043672,120]
[391692177,1760730645431,-500.0,0.00043672,120]
[391692179,1760730645440,-500.0,0.00043672,120]
[391692181,1760730645450,-500.0,0.00043672,120]
[391692183,1760730645461,-500.0,0.00043672,120]
[391692185,1760730645471,-500.0,0.00043672,120]
[391692187,1760730645481,-500.0,0.00043672,120]
[391692189,1760730645490,-500.0,0.00043672,120]
[391692191,1760730645500,-500.0,0.00043672,120]
[391692193,1760730645509,-500.0,0.00043672,120]
[391692195,1760730645518,-500.0,0.00043672,120]
[391692197,1760730645527,-500.0,0.00043672,120]
[391692199,1760730645536,-500.0,0.00043672,120]
[391692201,1760730645546,-500.0,0.00043672,120]
[391692203,1760730645555,-500.0,0.00043672,120]
[391692205,1760730645565,-500.0,0.00043672,120]
[391692207,1760730645575,-500.0,0.00043672,120]
[391692209,1760730645585,-500.0,0.00043672,120]
[391692211,1760730645594,-500.0,0.00043672,120]
[391692213,1760730645605,-500.0,0.00043672,120]
[391692215,1760730645614,-500.0,0.00043672,120]
[391692217,1760730645623,-500.0,0.00043672,120]
[391692218,1760730645633,-500.0,0.00043672,120]
[391692220,1760730645642,-500.0,0.00043672,120]
[391692222,1760730645652,-500.0,0.00043672,120]
[391692224,1760730645661,-500.0,0.00043672,120]
[391692226,1760730645670,-500.0,0.00043672,120]
[391692228,1760730645680,-500.0,0.00043672,120]
[391692230,1760730645690,-500.0,0.00043672,120]
[391692232,1760730645699,-500.0,0.00043672,120]
[391692235,1760730645710,-500.0,0.00043672,120]
[391692236,1760730645719,-500.0,0.00043672,120]
[391692238,1760730645728,-500.0,0.00043672,120]
[391692240,1760730645742,-500.0,0.00043672,120]
[391692242,1760730645751,-500.0,0.00043672,120]
[391692244,1760730645761,-500.0,0.00043672,120]
[391692246,1760730645770,-500.0,0.00043672,120]
[391692249,1760730645782,-500.0,0.00043672,120]
[391692250,1760730645790,-500.0,0.00043672,120]
[391692252,1760730645800,-500.0,0.00043672,120]
[391692254,1760730645810,-500.0,0.00043672,120]
[391692257,1760730645820,-500.0,0.00043672,120]
[391692258,1760730645829,-500.0,0.00043672,120]
[391692261,1760730645838,-500.0,0.00043672,120]
[391692263,1760730645848,-500.0,0.00043672,120]
[391692265,1760730645857,-500.0,0.00043672,120]
[391692267,1760730645866,-500.0,0.00043672,120]
[391692269,1760730645877,-500.0,0.00043672,120]
[391692271,1760730645886,-500.0,0.00043672,120]
[391692273,1760730645895,-500.0,0.00043672,120]
[391692275,1760730645904,-500.0,0.00043672,120]
[391692277,1760730645913,-500.0,0.00043672,120]
[391692279,1760730645922,-500.0,0.00043672,120]
[391692281,1760730645931,-500.0,0.00043672,120]
[391692283,1760730645940,-500.0,0.00043672,120]
[391692284,1760730645950,-500.0,0.00043672,120]
[391692286,1760730645959,-500.0,0.00043672,120]
[391692288,1760730645968,-500.0,0.00043672,120]
[391692290,1760730645979,-500.0,0.00043672,120]
[391692292,1760730645988,-500.0,0.00043672,120]
[391692294,1760730645997,-500.0,0.00043672,120]
[391692296,1760730646006,-500.0,0.00043672,120]
[391692298,1760730646015,-500.0,0.00043672,120]
[391692300,1760730646025,-500.0,0.00043672,120]
[391692303,1760730646034,-500.0,0.00043672,120]
[391692305,1760730646046,-500.0,0.00043672,120]
[391692306,1760730646055,-500.0,0.00043672,120]
[391692308,1760730646065,-500.0,0.00043672,120]
[391692311,1760730646075,-500.0,0.00043672,120]
[391692313,1760730646084,-619.0,0.00043672,120]
[391692315,1760730646093,-500.0,0.00043672,120]
[391692317,1760730646103,-500.0,0.00043672,120]
[391692319,1760730646113,-500.0,0.00043672,120]
[391692321,1760730646122,-500.0,0.00043672,120]
[391692323,1760730646131,-500.0,0.00043672,120]
[391692325,1760730646141,-500.0,0.00043672,120]
[391692327,1760730646150,-500.0,0.00043672,120]
[391692329,1760730646159,-500.0,0.00043672,120]
[391692330,1760730646168,-500.0,0.00043672,120]
[391692333,1760730646178,-500.0,0.00043672,120]
[391692335,1760730646188,-500.0,0.00043672,120]
[391692337,1760730646197,-500.0,0.00043672,120]
[391692338,1760730646207,-500.0,0.00043672,120]
[391692340,1760730646216,-500.0,0.00043672,120]
[391692343,1760730646225,-500.0,0.00043672,120]
[391692344,1760730646235,-500.0,0.00043672,120]
[391692346,1760730646244,-500.0,0.00043672,120]
[391692349,1760730646255,-500.0,0.00043672,120]
[391692350,1760730646264,-500.0,0.00043672,120]
[391692352,1760730646273,-500.0,0.00043672,120]
[391692354,1760730646283,-500.0,0.00043672,120]
[391692356,1760730646292,-500.0,0.00043672,120]
[391692358,1760730646301,-500.0,0.00043672,120]
[391692360,1760730646311,-500.0,0.00043672,120]
[391692362,1760730646320,-500.0,0.00043672,120]
[391692364,1760730646329,-500.0,0.00043672,120]
[391692367,1760730646340,-500.0,0.00043672,120]
[391692369,1760730646349,-690.0,0.00043672,120]
[391692370,1760730646358,-500.0,0.00043672,120]
[391692372,1760730646367,-500.0,0.00043672,120]
[391692374,1760730646377,-500.0,0.00043672,120]
[391692376,1760730646387,-500.0,0.00043672,120]
[391692378,1760730646396,-500.0,0.00043672,120]
[391692380,1760730646406,-500.0,0.00043672,120]
[391692383,1760730646418,-500.0,0.00043672,120]
[391692385,1760730646427,-500.0,0.00043672,120]
[391692387,1760730646436,-500.0,0.00043672,120]
[391692389,1760730646445,-500.0,0.00043672,120]
[391692391,1760730646454,-500.0,0.00043672,120]
[391692393,1760730646464,-500.0,0.00043672,120]
[391692395,1760730646475,-500.0,0.00043672,120]
[391692397,1760730646484,-500.0,0.00043672,120]
[391692399,1760730646493,-500.0,0.00043672,120]
[391692401,1760730646503,-810.0,0.00043672,120]
[391692403,1760730646512,-2050.0,0.00043672,2]
[391692405,1760730646521,-372.329,0.00043672,2]
[391692407,1760730646530,-1589.0,0.00043672,2]
[391692409,1760730646540,-1310.0,0.00043672,2]
[391692411,1760730646549,-605.0,0.00043672,2]
[391692413,1760730646558,-571.0,0.00043672,2]
[391692414,1760730646567,-816.0,0.00043672,2]
[391692416,1760730646577,-3356.0,0.00043672,2]
[391692418,1760730646587,-6445.0,0.00043672,2]
[391692421,1760730646596,-150.0,0.00043679,30]
[391692423,1760730646607,-18471.8455681,0.00043688,3]
[391692425,1760730646616,-300.0,0.00043698,118]
[391692427,1760730646625,-200.0,0.000437,15]
[391692429,1760730646636,-150.0,0.00043704,30]